fUST/lending_fUST_20250131
["ID","MTS","AMOUNT","RATE_DAILY","PERIOD"]
[351005298,1738282259160,-150.03,0.00017945,2]
[351005300,1738282259170,-755.71,0.00017945,2]
[351005302,1738282259180,-617.74,0.00017945,2]
[351005304,1738282259190,-2582.3,0.00017945,2]
[351005306,1738282259199,-2657.34,0.00017945,2]
[351005308,1738282259209,-500.0,0.00017945,2]
[351005310,1738282259219,-151.0,0.00017963,2]
[351005312,1738282259229,-5631.2268491,0.00018,7]
[351005314,1738282259239,-2155.11,0.00018,2]
[351005316,1738282259249,-151.0,0.00018,2]
[351005318,1738282259259,-621.0,0.00018,2]
[351005320,1738282259269,-1500.0,0.00018022,2]
[351005322,1738282259279,-495.123,0.00018023,2]
[351005324,1738282259290,-1376.59666431,0.00018031,2]
[351005326,1738282259300,-151.0,0.00018034,2]
[351005328,1738282259309,-151.0,0.00018034,2]
[351005330,1738282259319,-151.0,0.00018034,2]
[351005332,1738282259329,-2305.69330415,0.00018072,2]
[351005334,1738282259340,-151.0,0.00018082,2]
[351005336,1738282259349,-151.0,0.00018082,2]
[351005338,1738282259360,-151.0,0.00018082,2]
[351005341,1738282259370,-151.0,0.00018082,2]
[351005343,1738282259380,-726.705562,0.00018082,2]
[351005345,1738282259390,-726.705562,0.00018082,2]
[351005347,1738282259399,-170.155412,0.00018082,2]
[351005349,1738282259409,-170.155412,0.00018082,2]
[351005351,1738282259419,-178.103552,0.00018082,2]
[351005353,1738282259428,-332.919864,0.00018082,2]
[351005355,1738282259438,-332.919864,0.00018082,2]
[351005357,1738282259448,-641.801328,0.00018082,2]
[351005359,1738282259458,-151.0,0.00018082,2]
[351005361,1738282259467,-641.801328,0.00018082,2]
[351005363,1738282259478,-151.0,0.00018082,2]
[351005365,1738282259488,-151.0,0.00018082,2]
[351005367,1738282259498,-500.0,0.00018082,2]
[351005369,1738282259507,-584.52,0.00018082,2]
[351005371,1738282259516,-247.685621,0.00018082,2]
[351005373,1738282259525,-247.685621,0.00018082,2]
[351005375,1738282259535,-151.0,0.00018082,2]
[351005377,1738282259544,-500.0,0.00018082,2]
[351005379,1738282259554,-151.0,0.00018082,2]
[351005381,1738282259565,-1779.75,0.00018082,2]
[351005383,1738282259575,-1209.5,0.00018082,2]
[351005385,1738282259584,-804.07,0.00018082,2]
[351005387,1738282259594,-479.668886,0.00018082,2]
[351005389,1738282259603,-479.668886,0.00018082,2]
[351005391,1738282259613,-984.76,0.00018082,2]
[351005393,1738282259622,-282.25292099,0.00018082,2]
[351005395,1738282259632,-151.0,0.00018082,2]
[351005397,1738282259642,-328.206416,0.00018082,2]
[351005399,1738282259651,-1603.06,0.00018082,2]
[351005401,1738282259661,-328.206406,0.00018082,2]
[351005403,1738282259670,-500.0,0.00018082,2]
[351005405,1738282259681,-500.0,0.00018082,2]
[351005407,1738282259691,-173.731623,0.00018082,2]
[351005409,1738282259701,-2217.1,0.00018082,2]
[351005411,1738282259710,-173.73161799,0.00018082,2]
[351005413,1738282259719,-6057.22,0.00018082,2]
[351005415,1738282259728,-17725.04,0.00018082,2]
[351005417,1738282259738,-500.0,0.00018082,2]
[351005419,1738282259747,-500.0,0.00018082,2]
[351005421,1738282259759,-2497.57,0.00018082,2]
[351005423,1738282259769,-500.0,0.00018082,2]
[351005425,1738282259780,-1805.63,0.00018082,2]
[351005427,1738282259791,-500.0,0.00018082,2]
[351005428,1738282259802,-800.82,0.00018082,2]
[351005431,1738282259812,-3337.89,0.00018082,2]
[351005433,1738282259822,-515.22,0.00018082,2]
[351005435,1738282259831,-358.586509,0.00018082,2]
[351005437,1738282259841,-358.586515,0.00018082,2]
[351005439,1738282259851,-500.0,0.00018082,2]
[351005441,1738282259860,-792.17,0.00018082,2]
[351005443,1738282259870,-1783.16,0.00018082,2]
[351005445,1738282259879,-1541.87,0.00018082,2]
[351005446,1738282259889,-755.71,0.00018082,2]
[351005447,1738282259899,-617.74,0.00018082,2]
[351005448,1738282259910,-2582.3,0.00018082,2]
[351005449,1738282259919,-2657.34,0.00018082,2]
[351005450,1738282259928,-500.0,0.00018082,2]
[351005451,1738282259937,-151.0,0.000181,2]
[351005452,1738282259946,-151.0,0.000181,2]
[351005453,1738282259955,-298.0,0.000181,2]
[351005454,1738282259964,-3098.44656881,0.00018119,2]
[351005456,1738282259974,-500.0,0.00018122,2]
[351005458,1738282259984,-151.0,0.000182,2]
[351005461,1738282259995,-500.0,0.00018219,2]
[351005463,1738282260004,-500.0,0.00018219,2]
[351005465,1738282260013,-150.23,0.00018219,2]
[351005467,1738282260023,-806.11902404,0.00018219,2]
[351005469,1738282260033,-150.03,0.00018219,2]
[351005471,1738282260042,-150.03,0.00018219,2]
[351005473,1738282260052,-500.0,0.00018219,2]
[351005475,1738282260062,-500.0,0.00018219,2]
[351005477,1738282260072,-500.0,0.00018219,2]
[351005479,1738282260082,-150.23,0.00018219,2]
[351005480,1738282260092,-500.0,0.00018219,2]
[351005482,1738282260102,-906.33613308,0.00018219,2]
[351005484,1738282260111,-150.03,0.00018219,2]
[351005486,1738282260120,-153.118521,0.00018219,2]
[351005488,1738282260130,-151.0,0.00018219,2]
[351005490,1738282260140,-151.0,0.00018219,2]
[351005493,1738282260150,-151.0,0.00018219,2]
[351005495,1738282260160,-151.0,0.00018219,2]
[351005497,1738282260169,-151.0,0.00018219,2]
[351005499,1738282260178,-500.0,0.00018219,2]
[351005501,1738282260188,-584.52,0.00018219,2]
[351005503,1738282260197,-500.0,0.00018219,2]
[351005505,1738282260207,-1779.75,0.00018219,2]
[351005507,1738282260216,-1209.5,0.00018219,2]
[351005509,1738282260226,-804.07,0.00018219,2]
[351005511,1738282260235,-984.76,0.00018219,2]
[351005513,1738282260245,-1603.06,0.00018219,2]
[351005515,1738282260255,-500.0,0.00018219,2]
[351005517,1738282260264,-500.0,0.00018219,2]
[351005519,1738282260273,-2217.1,0.00018219,2]
[351005529,1738282260364,-6057.22,0.00018219,2]
[351005531,1738282260374,-17725.04,0.00018219,2]
[351005533,1738282260383,-500.0,0.00018219,2]
[351005535,1738282260393,-500.0,0.00018219,2]
[351005537,1738282260403,-2497.57,0.00018219,2]
[351005539,1738282260412,-500.0,0.00018219,2]
[351005541,1738282260422,-1805.63,0.00018219,2]
[351005543,1738282260431,-500.0,0.00018219,2]
[351005545,1738282260440,-800.82,0.00018219,2]
[351005547,1738282260450,-3337.89,0.00018219,2]
[351005550,1738282260460,-515.22,0.00018219,2]
[351005552,1738282260469,-500.0,0.00018219,2]
[351005554,1738282260478,-792.17,0.00018219,2]
[351005555,1738282260488,-1783.16,0.00018219,2]
[351005557,1738282260497,-1541.87,0.00018219,2]
[351005560,1738282260507,-755.71,0.00018219,2]
[351005562,1738282260517,-617.74,0.00018219,2]
[351005564,1738282260527,-2582.3,0.00018219,2]
[351005566,1738282260536,-2657.34,0.00018219,2]
[351005568,1738282260546,-500.0,0.00018219,2]
[351005570,1738282260556,-2305.69330415,0.00018245,2]
[351005572,1738282260566,-314.9728769,0.00018247,2]
[351005574,1738282260579,-151.0,0.000183,2]
[351005576,1738282260589,-175.88939009,0.00018346,2]
[351005578,1738282260601,-151.0,0.00018356,2]
[351005580,1738282260611,-151.0,0.00018356,2]
[351005582,1738282260620,-260.038834,0.00018356,2]
[351005584,1738282260629,-641.801328,0.00018356,2]
[351005586,1738282260639,-151.0,0.00018356,2]
[351005588,1738282260650,-641.801328,0.00018356,2]
[351005590,1738282260659,-151.0,0.00018356,2]
[351005592,1738282260669,-500.0,0.00018356,2]
[351005594,1738282260678,-584.52,0.00018356,2]
[351005596,1738282260691,-247.685621,0.00018356,2]
[351005598,1738282260700,-247.685621,0.00018356,2]
[351005600,1738282260709,-151.0,0.00018356,2]
[351005602,1738282260719,-151.0,0.00018356,2]
[351005604,1738282260730,-500.0,0.00018356,2]
[351005606,1738282260739,-1779.75,0.00018356,2]
[351005608,1738282260748,-1209.5,0.00018356,2]
[351005610,1738282260757,-804.07,0.00018356,2]
[351005612,1738282260767,-479.668886,0.00018356,2]
[351005614,1738282260777,-479.668886,0.00018356,2]
[351005616,1738282260787,-984.76,0.00018356,2]
[351005618,1738282260796,-151.0,0.00018356,2]
[351005620,1738282260807,-1603.06,0.00018356,2]
[351005622,1738282260816,-500.0,0.00018356,2]
[351005624,1738282260826,-500.0,0.00018356,2]
[351005626,1738282260835,-2217.1,0.00018356,2]
[351005628,1738282260845,-6057.22,0.00018356,2]
[351005630,1738282260855,-17725.04,0.00018356,2]
[351005632,1738282260864,-500.0,0.00018356,2]
[351005634,1738282260874,-500.0,0.00018356,2]
[351005636,1738282260884,-2497.57,0.00018356,2]
[351005638,1738282260894,-433.10782801,0.00018356,2]
[351005640,1738282260903,-1805.63,0.00018356,2]
[351005642,1738282260913,-500.0,0.00018356,2]
[351005644,1738282260923,-800.82,0.00018356,2]
[351005646,1738282260933,-3337.89,0.00018356,2]
[351005648,1738282260942,-515.22,0.00018356,2]
[351005650,1738282260952,-500.0,0.00018356,2]
[351005652,1738282260962,-792.17,0.00018356,2]
[351005654,1738282260971,-1783.16,0.00018356,2]
[351005656,1738282260982,-1541.87,0.00018356,2]
[351005658,1738282260992,-755.71,0.00018356,2]
[351005660,1738282261002,-617.74,0.00018356,2]
[351005662,1738282261011,-2582.3,0.00018356,2]
[351005664,1738282261020,-2657.34,0.00018356,2]
[351005666,1738282261029,-500.0,0.00018356,2]
[351005668,1738282261039,-151.0,0.000184,2]
[351005671,1738282261049,-2305.69330415,0.00018417,2]
[351005672,1738282261059,-587.0,0.00018456,2]
[351005675,1738282261069,-500.0,0.00018464,2]
[351005677,1738282261079,-250.0,0.00018479,2]
[351005678,1738282261088,-150.916,0.00018479,2]
[351005681,1738282261098,-151.0,0.00018479,2]
[351005683,1738282261109,-151.0,0.00018479,2]
[351005684,1738282261118,-151.0,0.00018479,2]
[351005687,1738282261127,-151.0,0.00018479,2]
[351005689,1738282261137,-500.0,0.00018493,2]
[351005691,1738282261147,-600.56,0.00018493,2]
[351005692,1738282261157,-150.03,0.00018493,2]
[351005694,1738282261167,-150.03,0.00018493,2]
[351005696,1738282261177,-500.0,0.00018493,2]
[351005698,1738282261186,-772.73740266,0.00018493,2]
[351005700,1738282261196,-500.0,0.00018493,2]
[351005702,1738282261206,-500.0,0.00018493,2]
[351005704,1738282261215,-150.85684433,0.00018493,2]
[351005706,1738282261225,-151.0,0.00018493,2]
[351005708,1738282261235,-151.0,0.00018493,2]
[351005710,1738282261244,-151.0,0.00018493,2]
[351005712,1738282261254,-151.0,0.00018493,2]
[351005714,1738282261264,-151.0,0.00018493,2]
[351005716,1738282261273,-151.0,0.00018493,2]
[351005718,1738282261283,-726.705562,0.00018493,2]
[351005720,1738282261293,-726.705562,0.00018493,2]
[351005722,1738282261303,-170.155412,0.00018493,2]
[351005725,1738282261314,-170.155412,0.00018493,2]
[351005726,1738282261325,-332.919864,0.00018493,2]
[351005728,1738282261334,-332.919864,0.00018493,2]
[351005730,1738282261345,-500.0,0.00018493,2]
[351005732,1738282261355,-584.52,0.00018493,2]
[351005734,1738282261364,-500.0,0.00018493,2]
[351005736,1738282261373,-1779.75,0.00018493,2]
[351005738,1738282261382,-1209.5,0.00018493,2]
[351005740,1738282261392,-804.07,0.00018493,2]
[351005742,1738282261401,-984.76,0.00018493,2]
[351005744,1738282261410,-1603.06,0.00018493,2]
[351005746,1738282261419,-500.0,0.00018493,2]
[351005748,1738282261429,-500.0,0.00018493,2]
[351005750,1738282261438,-2217.1,0.00018493,2]
[351005752,1738282261448,-6057.22,0.00018493,2]
[351005754,1738282261457,-17725.04,0.00018493,2]
[351005756,1738282261467,-500.0,0.00018493,2]
[351005758,1738282261477,-500.0,0.00018493,2]
[351005760,1738282261486,-2497.57,0.00018493,2]
[351005762,1738282261496,-1805.63,0.00018493,2]
[351005764,1738282261506,-500.0,0.00018493,2]
[351005766,1738282261515,-800.82,0.00018493,2]
[351005768,1738282261524,-3337.89,0.00018493,2]
[351005770,1738282261534,-515.22,0.00018493,2]
[351005772,1738282261543,-500.0,0.00018493,2]
[351005774,1738282261552,-792.17,0.00018493,2]
[351005776,1738282261562,-1783.16,0.00018493,2]
[351005778,1738282261571,-1541.87,0.00018493,2]
[351005780,1738282261581,-755.71,0.00018493,2]
[351005782,1738282261592,-617.74,0.00018493,2]
[351005784,1738282261601,-2582.3,0.00018493,2]
[351005786,1738282261612,-2657.34,0.00018493,2]
[351005788,1738282261621,-522.55,0.00018493,2]
[351005790,1738282261631,-151.0,0.000185,2]
[351005792,1738282261641,-151.0,0.000185,2]
[351005794,1738282261650,-3098.4465688,0.00018584,2]
[351005797,1738282261660,-2305.69330415,0.0001859,2]
[351005805,1738282261733,-156.11,0.000186,2]
[351005807,1738282261743,-156.11,0.000186,2]
[351005809,1738282261752,-641.801328,0.0001863,2]
[351005811,1738282261762,-151.0,0.0001863,2]
[351005813,1738282261772,-641.801328,0.0001863,2]
[351005815,1738282261782,-296.766994,0.0001863,2]
[351005817,1738282261791,-500.0,0.0001863,2]
[351005819,1738282261801,-584.52,0.0001863,2]
[351005821,1738282261811,-247.685621,0.0001863,2]
[351005823,1738282261820,-247.685623,0.0001863,2]
[351005824,1738282261828,-151.0,0.0001863,2]
[351005826,1738282261838,-151.0,0.0001863,2]
[351005828,1738282261849,-500.0,0.0001863,2]
[351005830,1738282261858,-1779.75,0.0001863,2]
[351005832,1738282261868,-1209.5,0.0001863,2]
[351005834,1738282261877,-804.07,0.0001863,2]
[351005836,1738282261887,-479.668886,0.0001863,2]
[351005838,1738282261896,-479.668892,0.0001863,2]
[351005840,1738282261906,-984.76,0.0001863,2]
[351005842,1738282261915,-151.0,0.0001863,2]
[351005845,1738282261925,-1603.06,0.0001863,2]
[351005847,1738282261935,-500.0,0.0001863,2]
[351005848,1738282261945,-264.97,0.0001863,2]
[351005851,1738282261955,-2217.1,0.0001863,2]
[351005852,1738282261966,-6057.22,0.0001863,2]
[351005854,1738282261975,-17725.04,0.0001863,2]
[351005856,1738282261985,-500.0,0.0001863,2]
[351005858,1738282261995,-500.0,0.0001863,2]
[351005860,1738282262004,-2497.57,0.0001863,2]
[351005862,1738282262014,-1805.63,0.0001863,2]
[351005864,1738282262024,-500.0,0.0001863,2]
[351005866,1738282262034,-800.82,0.0001863,2]
[351005868,1738282262044,-3337.89,0.0001863,2]
[351005870,1738282262053,-515.22,0.0001863,2]
[351005872,1738282262063,-500.0,0.0001863,2]
[351005874,1738282262073,-792.17,0.0001863,2]
[351005876,1738282262082,-1783.16,0.0001863,2]
[351005878,1738282262092,-1541.87,0.0001863,2]
[351005880,1738282262102,-755.71,0.0001863,2]
[351005882,1738282262111,-617.74,0.0001863,2]
[351005884,1738282262120,-2582.3,0.0001863,2]
[351005886,1738282262130,-2657.34,0.0001863,2]
[351005888,1738282262140,-151.0,0.00018696,2]
[351005890,1738282262150,-151.0,0.00018696,2]
[351005892,1738282262159,-260.271,0.00018696,2]
[351005893,1738282262168,-2043.0,0.00018696,2]
[351005895,1738282262178,-537.0,0.00018696,2]
[351005897,1738282262187,-2302.0,0.00018696,2]
[351005899,1738282262197,-395.0,0.00018696,2]
[351005901,1738282262207,-2305.69330415,0.00018762,2]
[351005903,1738282262218,-951.55779048,0.00018767,2]
[351005905,1738282262227,-151.34612018,0.00018767,2]
[351005907,1738282262237,-150.69342375,0.00018767,2]
[351005909,1738282262247,-500.0,0.00018767,2]
[351005911,1738282262256,-679.18387825,0.00018767,2]
[351005913,1738282262266,-500.0,0.00018767,2]
[351005915,1738282262277,-151.0,0.00018767,2]
[351005917,1738282262287,-726.705562,0.00018767,2]
[351005919,1738282262296,-726.705562,0.00018767,2]
[351005920,1738282262305,-170.155412,0.00018767,2]
[351005922,1738282262314,-170.155412,0.00018767,2]
[351005924,1738282262323,-332.919864,0.00018767,2]
[351005926,1738282262332,-332.919864,0.00018767,2]
[351005928,1738282262342,-500.0,0.00018767,2]
[351005930,1738282262352,-584.52,0.00018767,2]
[351005932,1738282262361,-500.0,0.00018767,2]
[351005934,1738282262371,-1779.75,0.00018767,2]
[351005936,1738282262380,-1209.5,0.00018767,2]
[351005938,1738282262390,-804.07,0.00018767,2]
[351005940,1738282262400,-984.76,0.00018767,2]
[351005942,1738282262410,-1603.06,0.00018767,2]
[351005944,1738282262419,-500.0,0.00018767,2]
[351005946,1738282262428,-2217.1,0.00018767,2]
[351005948,1738282262437,-6057.22,0.00018767,2]
[351005950,1738282262446,-17725.04,0.00018767,2]
[351005951,1738282262455,-500.0,0.00018767,2]
[351005953,1738282262464,-239.53,0.00018767,2]
[351005955,1738282262474,-2497.57,0.00018767,2]
[351005957,1738282262483,-1805.63,0.00018767,2]
[351005959,1738282262493,-588.36,0.00018767,2]
[351005961,1738282262503,-800.82,0.00018767,2]
[351005963,1738282262512,-3337.89,0.00018767,2]
[351005965,1738282262522,-515.22,0.00018767,2]
[351005967,1738282262531,-500.0,0.00018767,2]
[351005969,1738282262541,-792.17,0.00018767,2]
[351005971,1738282262550,-1783.16,0.00018767,2]
[351005973,1738282262560,-1541.87,0.00018767,2]
[351005975,1738282262569,-755.71,0.00018767,2]
[351005977,1738282262578,-617.74,0.00018767,2]
[351005978,1738282262587,-2582.3,0.00018767,2]
[351005980,1738282262597,-2657.34,0.00018767,2]
[351005982,1738282262607,-151.0,0.000188,2]
[351005984,1738282262616,-1376.59666431,0.00018886,2]
[351005986,1738282262625,-26799.78983652,0.0001889,3]
[351005988,1738282262634,-151.0,0.0001889,2]
[351005990,1738282262643,-151.0,0.0001889,2]
[351005992,1738282262652,-151.0,0.0001889,2]
[351005994,1738282262662,-151.0,0.0001889,2]
[351005996,1738282262671,-151.0,0.0001889,2]
[351005998,1738282262684,-151.0,0.0001889,2]
[351006000,1738282262693,-152.194572,0.0001889,2]
[351006002,1738282262703,-151.0,0.0001889,2]
[351006004,1738282262712,-196.586602,0.0001889,2]
[351006006,1738282262723,-151.0,0.000189,2]
[351006007,1738282262733,-6874.56,0.000189,2]
[351006009,1738282262742,-6392.7,0.000189,2]
[351006011,1738282262751,-150.0,0.000189,2]
[351006013,1738282262765,-151.0,0.00018904,2]
[351006015,1738282262776,-151.0,0.00018904,2]
[351006017,1738282262786,-641.801328,0.00018904,2]
[351006019,1738282262795,-151.0,0.00018904,2]
[351006021,1738282262805,-641.801328,0.00018904,2]
[351006023,1738282262815,-500.0,0.00018904,2]
[351006025,1738282262824,-584.52,0.00018904,2]
[351006027,1738282262833,-461.65099261,0.00018904,2]
[351006029,1738282262843,-1779.75,0.00018904,2]
[351006031,1738282262853,-1209.5,0.00018904,2]
[351006033,1738282262863,-804.07,0.00018904,2]
[351006035,1738282262872,-984.76,0.00018904,2]
[351006037,1738282262882,-1603.06,0.00018904,2]
[351006039,1738282262891,-500.0,0.00018904,2]
[351006041,1738282262901,-2217.1,0.00018904,2]
[351006043,1738282262911,-6057.22,0.00018904,2]
[351006045,1738282262921,-17725.04,0.00018904,2]
[351006054,1738282262993,-550.64850878,0.00018904,2]
[351006056,1738282263003,-2497.57,0.00018904,2]
[351006058,1738282263013,-1805.63,0.00018904,2]
[351006059,1738282263023,-800.82,0.00018904,2]
[351006061,1738282263033,-3337.89,0.00018904,2]
[351006063,1738282263043,-515.22,0.00018904,2]
[351006065,1738282263053,-500.0,0.00018904,2]
[351006067,1738282263063,-792.17,0.00018904,2]
[351006069,1738282263073,-1783.16,0.00018904,2]
[351006071,1738282263083,-1541.87,0.00018904,2]
[351006073,1738282263093,-755.71,0.00018904,2]
[351006075,1738282263104,-617.74,0.00018904,2]
[351006077,1738282263115,-2582.3,0.00018904,2]
[351006079,1738282263125,-2657.34,0.00018904,2]
[351006081,1738282263135,-2305.69330415,0.00018934,2]
[351006083,1738282263145,-500.0,0.00018973,2]
[351006085,1738282263154,-500.0,0.00018973,2]
[351006087,1738282263163,-500.0,0.00018973,2]
[351006089,1738282263174,-500.0,0.00018973,2]
[351006091,1738282263183,-500.0,0.00018973,2]
[351006093,1738282263193,-500.0,0.00018973,2]
[351006094,1738282263202,-500.0,0.00018973,2]
[351006096,1738282263212,-500.0,0.00018973,2]
[351006098,1738282263223,-500.0,0.00018973,2]
[351006100,1738282263233,-500.0,0.00018973,2]
[351006102,1738282263243,-151.0,0.00018973,2]
[351006104,1738282263252,-1047.49746887,0.00018998,2]
[351006106,1738282263263,-165446.64793725,0.00019,2]
[351006108,1738282263273,-10000.0,0.00019,2]
[351006110,1738282263283,-10000.0,0.00019,2]
[351006112,1738282263293,-151.0,0.00019,2]
[351006114,1738282263303,-151.0,0.00019,2]
[351006116,1738282263315,-151.0,0.00019,2]
[351006118,1738282263325,-157.756808,0.00019,2]
[351006120,1738282263334,-151.0,0.00019,2]
[351006122,1738282263345,-154.160052,0.00019,2]
[351006124,1738282263355,-151.0,0.00019,2]
[351006126,1738282263364,-166.981345,0.00019,2]
[351006127,1738282263374,-151.0,0.00019,2]
[351006129,1738282263384,-726.705562,0.00019,2]
[351006131,1738282263393,-726.705562,0.00019,2]
[351006133,1738282263403,-170.155412,0.00019,2]
[351006135,1738282263413,-170.155412,0.00019,2]
[351006137,1738282263423,-332.919864,0.00019,2]
[351006139,1738282263432,-332.919864,0.00019,2]
[351006141,1738282263441,-641.801328,0.00019,2]
[351006143,1738282263451,-151.0,0.00019,2]
[351006144,1738282263461,-641.80132783,0.00019,2]
[351006146,1738282263471,-303.00000303,0.00019,2]
[351006148,1738282263480,-303.00000303,0.00019,2]
[351006150,1738282263490,-500.0,0.00019041,2]
[351006152,1738282263499,-500.0,0.00019041,2]
[351006154,1738282263509,-500.0,0.00019041,2]
[351006156,1738282263521,-584.52,0.00019041,2]
[351006158,1738282263531,-1779.75,0.00019041,2]
[351006160,1738282263540,-1209.5,0.00019041,2]
[351006162,1738282263551,-804.07,0.00019041,2]
[351006164,1738282263562,-984.76,0.00019041,2]
[351006166,1738282263571,-1603.06,0.00019041,2]
[351006168,1738282263581,-500.0,0.00019041,2]
[351006170,1738282263591,-2217.1,0.00019041,2]
[351006172,1738282263601,-6057.22,0.00019041,2]
[351006174,1738282263611,-17725.04,0.00019041,2]
[351006176,1738282263622,-2497.57,0.00019041,2]
[351006178,1738282263631,-1805.63,0.00019041,2]
[351006179,1738282263641,-800.82,0.00019041,2]
[351006181,1738282263650,-3337.89,0.00019041,2]
[351006183,1738282263660,-515.22,0.00019041,2]
[351006185,1738282263669,-500.0,0.00019041,2]
[351006187,1738282263678,-792.17,0.00019041,2]
[351006189,1738282263693,-1783.16,0.00019041,2]
[351006191,1738282263703,-1541.87,0.00019041,2]
[351006193,1738282263713,-755.71,0.00019041,2]
[351006195,1738282263726,-617.74,0.00019041,2]
[351006197,1738282263736,-2582.3,0.00019041,2]
[351006199,1738282263746,-2657.34,0.00019041,2]
[351006201,1738282263756,-3098.4465688,0.0001905,2]
[351006203,1738282263767,-7814.444029,0.00019098,2]
[351006205,1738282263778,-2305.69330415,0.00019107,2]
[351006207,1738282263788,-274.665893,0.00019107,2]
[351006209,1738282263799,-151.0,0.00019107,2]
[351006211,1738282263809,-726.705562,0.00019107,2]
[351006213,1738282263819,-726.705562,0.00019107,2]
[351006215,1738282263829,-170.155412,0.00019107,2]
[351006217,1738282263839,-170.155412,0.00019107,2]
[351006219,1738282263849,-332.919864,0.00019107,2]
[351006221,1738282263859,-332.919864,0.00019107,2]
[351006223,1738282263868,-151.0,0.00019178,2]
[351006225,1738282263877,-151.0,0.00019178,2]
[351006227,1738282263886,-151.0,0.00019178,2]
[351006229,1738282263896,-500.0,0.00019178,2]
[351006231,1738282263905,-500.0,0.00019178,2]
[351006232,1738282263914,-500.0,0.00019178,2]
[351006234,1738282263924,-500.0,0.00019178,2]
[351006236,1738282263934,-500.0,0.00019178,2]
[351006238,1738282263943,-500.0,0.00019178,2]
[351006240,1738282263953,-500.0,0.00019178,2]
[351006242,1738282263964,-500.0,0.00019178,2]
[351006244,1738282263974,-185.47315572,0.00019178,2]
[351006246,1738282263983,-500.0,0.00019178,2]
[351006248,1738282263993,-500.0,0.00019178,2]
[351006250,1738282264002,-500.0,0.00019178,2]
[351006252,1738282264012,-584.52,0.00019178,2]
[351006254,1738282264022,-304.78044685,0.00019178,2]
[351006256,1738282264032,-1779.75,0.00019178,2]
[351006257,1738282264042,-1209.5,0.00019178,2]
[351006259,1738282264052,-804.07,0.00019178,2]
[351006261,1738282264064,-984.76,0.00019178,2]
[351006263,1738282264073,-1603.06,0.00019178,2]
[351006265,1738282264084,-500.0,0.00019178,2]
[351006267,1738282264096,-2217.1,0.00019178,2]
[351006269,1738282264105,-6057.22,0.00019178,2]
[351006271,1738282264115,-17725.04,0.00019178,2]
[351006273,1738282264124,-2497.57,0.00019178,2]
[351006280,1738282264193,-1805.63,0.00019178,2]
[351006282,1738282264203,-800.82,0.00019178,2]
[351006284,1738282264212,-3337.89,0.00019178,2]
[351006286,1738282264223,-515.22,0.00019178,2]
[351006288,1738282264234,-500.0,0.00019178,7]
[351006290,1738282264244,-627.68033343,0.00019178,2]
[351006292,1738282264253,-499.0,0.00019178,2]
[351006294,1738282264263,-792.17,0.00019178,2]
[351006296,1738282264272,-1783.16,0.00019178,2]
[351006298,1738282264283,-1541.87,0.00019178,2]
[351006299,1738282264292,-755.71,0.00019178,2]
[351006301,1738282264303,-617.74,0.00019178,2]
[351006303,1738282264313,-2582.3,0.00019178,2]